[Event "Manisa Yunusemre IM Norm 2019"]
[Site "Manisa"]
[Date "2019.04.30"]
[Round "3.1"]
[White "Simantsev, Mikhail"]
[Black "Akin, Kadir"]
[Result "1-0"]
[ECO "D46"]
[WhiteElo "2395"]
[BlackElo "2033"]
[Annotator "NA"]
[PlyCount "35"]
[EventDate "2019.04.30"]
[EventCountry "TUR"]
[SourceTitle "playchess.com"]
[Source "ChessBase"]
[SourceQuality "1"]
[TimeControl "5400+30"]

1. d4 {[%emt 0:16:30]} d5 {[%emt 0:00:30]} 2. c4 {[%emt 0:02:30]} e6 {[%emt 0:00:00]} 3. Nc3 {[%emt 0:01:30]} Nf6 {[%emt 0:00:00]} 4. Nf3 {[%emt 0:01:30]} c6 {[%emt 0:00:30]} 5. e3 {[%emt 0:01:30]} Nbd7 {[%emt 0:00:30]} 6. Qc2 {[%emt 0:02:30]} Bd6 {[%emt 0:00:00]} 7. Be2 {[%emt 0:02:30]} O-O {[%emt 0:00:00]} 8. O-O {[%emt 0:00:00]} dxc4 {[%emt 0:10:30]} 9. Bxc4 {[%emt 0:00:00]} e5 {[%emt 0:00:00]} 10. Bb3 {[%emt 0:03:30]} exd4 {[%emt 0:00:00]} 11. exd4 {[%emt 0:02:30]} h6 {[%emt 0:01:30]} 12. Bxh6 {[%emt 0:12:30]} gxh6 {[%emt 0:01:30]} 13. Qg6+ {[%emt 0:01:30]} Kh8 {[%emt 0:00:30]} 14. Qxh6+ {[%emt 0:00:30]} Kg8 {[%emt 0:00:00]} 15. Ng5 {[%emt 0:06:30]} Qa5 {[%emt 0:02:00]} 16. Nce4 {[%emt 0:08:30]} Be7 {[%emt 0:02:30]} 17. Qg6+ {[%emt 0:02:30]} Kh8 {[%emt 0:00:00]} 18. Bxf7 {[%emt 0:00:00]} 1-0

[Event "Manisa Yunusemre IM Norm 2019"]
[Site "Manisa"]
[Date "2019.04.30"]
[Round "3.2"]
[White "Morozov, Nichita"]
[Black "Abdullayev, Azer"]
[Result "1-0"]
[ECO "D00"]
[WhiteElo "2398"]
[BlackElo "2074"]
[Annotator "NA"]
[PlyCount "98"]
[EventDate "2019.04.30"]
[EventCountry "TUR"]
[SourceTitle "playchess.com"]
[Source "ChessBase"]
[SourceQuality "1"]
[TimeControl "5400+30"]

1. d4 {[%emt 0:02:30]} Nf6 {[%emt 0:00:30]} 2. Bg5 {[%emt 0:00:30]} d5 {[%emt 0:00:30]} 3. e3 {[%emt 0:00:00]} Nbd7 {[%emt 0:04:30]} 4. Nd2 {[%emt 0:01:00]} e5 {[%emt 0:04:30]} 5. c3 {[%emt 0:01:30]} Be7 {[%emt 0:03:30]} 6. Bd3 {[%emt 0:01:30]} O-O {[%emt 0:00:30]} 7. Ne2 {[%emt 0:00:30]} c6 {[%emt 0:10:30]} 8. O-O {[%emt 0:12:30]} e4 {[%emt 0:12:30]} 9. Bc2 {[%emt 0:00:30]} Nh5 {[%emt 0:07:30]} 10. Bxe7 {[%emt 0:00:30]} Qxe7 {[%emt 0:00:30]} 11. f4 {[%emt 0:04:30]} exf3 {[%emt 0:02:30]} 12. Rxf3 {[%emt 0:04:30]} Ndf6 {[%emt 0:00:30]} 13. h3 {[%emt 0:00:30]} Ne4 {[%emt 0:01:30]} 14. Nxe4 {[%emt 0:01:30]} dxe4 {[%emt 0:00:30]} 15. Rf2 {[%emt 0:03:30]} Qg5 {[%emt 0:07:30]} 16. Nf4 {[%emt 0:02:30]} Ng3 {[%emt 0:14:30]} 17. Bb3 {[%emt 0:04:30]} Bd7 {[%emt 0:05:30]} 18. a4 {[%emt 0:00:30]} Rae8 {[%emt 0:01:53]} 19. Bc4 {[%emt 0:03:30]} Nf5 {[%emt 0:08:59]} 20. Qe2 {[%emt 0:00:30]} Qg3 {[%emt 0:01:12]} 21. Re1 {[%emt 0:00:30]} Nh4 {[%emt 0:04:44]} 22. Kh1 {[%emt 0:00:30]} g6 {[%emt 0:01:36]} 23. Ref1 {[%emt 0:14:30]} Nf5 {[%emt 0:05:09]} 24. Nh5 {[%emt 0:02:30]} gxh5 {[%emt 0:00:24]} 25. Rxf5 {[%emt 0:01:30]} Bxf5 {[%emt 0:00:25]} 26. Rxf5 {[%emt 0:00:30]} Qg6 {[%emt 0:00:30]} 27. Qf2 {[%emt 0:00:30]} Kg7 {[%emt 0:00:30]} 28. Be2 {[%emt 0:00:30]} Re7 {[%emt 0:00:30]} 29. Bxh5 {[%emt 0:00:30]} Qh6 {[%emt 0:00:30]} 30. Bg4 {[%emt 0:00:30]} Rh8 {[%emt 0:00:30]} 31. Rf4 {[%emt 0:00:30]} Kf8 {[%emt 0:00:30]} 32. Bf5 {[%emt 0:00:30]} Qg5 {[%emt 0:00:30]} 33. h4 {[%emt 0:00:30]} Qg7 {[%emt 0:00:30]} 34. Bxe4 {[%emt 0:02:30]} Rg8 {[%emt 0:00:18]} 35. Kh2 {[%emt 0:00:30]} Qh6 {[%emt 0:00:48]} 36. Bf5 {[%emt 0:02:30]} Kg7 {[%emt 0:00:27]} 37. e4 {[%emt 0:01:30]} f6 {[%emt 0:00:15]} 38. Bh3 {[%emt 0:00:30]} Rge8 {[%emt 0:00:05]} 39. Qf3 {[%emt 0:01:30]} Rd8 {[%emt 0:00:58]} 40. b4 {[%emt 0:01:30]} a5 {[%emt 0:00:26]} 41. bxa5 {[%emt 0:00:00]} c5 {[%emt 0:00:21]} 42. d5 {[%emt 0:00:00]} Rd6 {[%emt 0:00:14]} 43. Be6 {[%emt 0:00:30]} Rdxe6 {[%emt 0:00:20]} 44. dxe6 {[%emt 0:00:00]} Rxe6 {[%emt 0:00:07]} 45. Rg4+ {[%emt 0:00:00]} Kf7 {[%emt 0:00:49]} 46. Qf5 {[%emt 0:00:30]} c4 {[%emt 0:01:06]} 47. Qd5 {[%emt 0:00:00]} Qe3 {[%emt 0:00:50]} 48. Qh5+ {[%emt 0:00:00]} Ke7 {[%emt 0:00:31]} 49. Rg7+ {[%emt 0:00:30]} Kd8 {[%emt 0:00:07]} 1-0

[Event "Manisa Yunusemre IM Norm 2019"]
[Site "Manisa"]
[Date "2019.04.30"]
[Round "3.3"]
[White "Kukov, Velislav"]
[Black "Metin, Oguz"]
[Result "1/2-1/2"]
[ECO "A50"]
[WhiteElo "2351"]
[BlackElo "2058"]
[Annotator "NA"]
[PlyCount "78"]
[EventDate "2019.04.30"]
[EventCountry "TUR"]
[SourceTitle "playchess.com"]
[Source "ChessBase"]
[SourceQuality "1"]
[TimeControl "5400+30"]

1. Nf3 {[%emt 0:00:30]} Nf6 {[%emt 0:00:30]} 2. g3 {[%emt 0:00:00]} b6 {[%emt 0:01:30]} 3. Bg2 {[%emt 0:00:00]} Bb7 {[%emt 0:00:00]} 4. O-O {[%emt 0:00:00]} g6 {[%emt 0:01:00]} 5. c4 {[%emt 0:03:00]} Bg7 {[%emt 0:00:30]} 6. Nc3 {[%emt 0:00:30]} O-O {[%emt 0:00:30]} 7. d4 {[%emt 0:01:30]} Ne4 {[%emt 0:01:30]} 8. Nxe4 {[%emt 0:07:30]} Bxe4 {[%emt 0:00:30]} 9. Be3 {[%emt 0:00:30]} d6 {[%emt 0:02:30]} 10. Qd2 {[%emt 0:03:30]} c5 {[%emt 0:04:30]} 11. Bh6 {[%emt 0:03:30]} Nd7 {[%emt 0:06:30]} 12. Bxg7 {[%emt 0:01:30]} Kxg7 {[%emt 0:00:30]} 13. a4 {[%emt 0:07:30]} Nf6 {[%emt 0:10:30]} 14. Ra3 {[%emt 0:07:30]} Qc7 {[%emt 0:06:30]} 15. d5 {[%emt 0:01:30]} a6 {[%emt 0:01:30]} 16. Qf4 {[%emt 0:07:30]} Qd7 {[%emt 0:13:30]} 17. Re3 {[%emt 0:11:30]} Bxf3 {[%emt 0:02:30]} 18. Bxf3 {[%emt 0:02:30]} Ra7 $11 {[%emt 0:03:30]} 19. Ra3 {[%emt 0:02:30]} Rb8 {[%emt 0:12:30]} 20. e4 {[%emt 0:03:30]} Qc7 {[%emt 0:01:30]} 21. Be2 {[%emt 0:00:30]} Nd7 {[%emt 0:04:30]} 22. Qd2 {[%emt 0:09:30]} Nf8 {[%emt 0:08:19]} 23. f4 {[%emt 0:00:30]} f6 {[%emt 0:01:57]} 24. Re3 {[%emt 0:03:30]} Nd7 {[%emt 0:06:02]} 25. b3 {[%emt 0:00:30]} Re8 {[%emt 0:01:14]} 26. h4 {[%emt 0:03:18]} Raa8 {[%emt 0:01:35]} 27. Kg2 {[%emt 0:03:44]} a5 {[%emt 0:02:03]} 28. Bg4 {[%emt 0:03:16]} Nf8 {[%emt 0:03:01]} 29. h5 {[%emt 0:04:30]} e6 {[%emt 0:01:31]} 30. hxg6 {[%emt 0:02:42]} hxg6 {[%emt 0:00:24]} 31. e5 {[%emt 0:01:51]} f5 {[%emt 0:00:36]} 32. Bf3 {[%emt 0:00:21]} Rad8 {[%emt 0:01:37]} 33. Qc3 {[%emt 0:01:44]} Qf7 {[%emt 0:00:53]} 34. dxe6 {[%emt 0:01:25]} Nxe6 {[%emt 0:00:27]} 35. Bc6 {[%emt 0:02:19]} Nd4 {[%emt 0:00:37]} 36. Bxe8 {[%emt 0:00:13]} Qxe8 {[%emt 0:00:28]} 37. Rh1 {[%emt 0:02:05]} Qc6+ {[%emt 0:00:42]} 38. Kg1 {[%emt 0:00:01]} dxe5 {[%emt 0:00:11]} 39. Rxe5 {[%emt 0:00:31]} Qf3 {[%emt 0:00:41]} 1/2-1/2

[Event "Manisa Yunusemre IM Norm 2019"]
[Site "Manisa"]
[Date "2019.04.30"]
[Round "3.4"]
[White "Mammadova, Narmin"]
[Black "Nalbant, Tuna Onat"]
[Result "0-1"]
[ECO "B06"]
[WhiteElo "2292"]
[BlackElo "2354"]
[Annotator "NA"]
[PlyCount "132"]
[EventDate "2019.04.30"]
[EventCountry "TUR"]
[SourceTitle "playchess.com"]
[Source "ChessBase"]
[SourceQuality "1"]
[TimeControl "5400+30"]

1. e4 {[%emt 0:01:30]} c5 {[%emt 0:00:30]} 2. c3 {[%emt 0:00:30]} d5 {[%emt 0:00:30]} 3. exd5 {[%emt 0:00:00]} Qxd5 {[%emt 0:00:00]} 4. d4 {[%emt 0:00:00]} g6 {[%emt 0:00:00]} 5. Nf3 {[%emt 0:00:30]} Bg7 {[%emt 0:01:30]} 6. Be3 {[%emt 0:00:30]} cxd4 {[%emt 0:00:00]} 7. cxd4 {[%emt 0:00:30]} Nf6 {[%emt 0:02:00]} 8. Nc3 {[%emt 0:00:00] B06: Modern Defence} Qd8 {[%emt 0:00:30]} 9. Qb3 {[%emt 0:01:00]} (9. h3 O-O 10. Bc4 Nc6 11. O-O Na5 12. Be2 Be6 13. Ne5 Nd5 14. Bd2 Rc8 15. Qa4 b6 {1-0 (82) Bosiocic,M (2591)-Adhiban,B (2666) Doha 2016}) 9... O-O {[%emt 0:01:30]} 10. Rd1 {[%emt 0:00:30]} Nc6 $146 {[%emt 0:04:30]} ({Predecessor:} 10... b6 11. Be2 Bb7 12. O-O Nd5 13. Bc4 Nxc3 14. bxc3 Bxf3 15. gxf3 {0-1 (47) Guzenko,A (2083)-Fedoseev,S (2184) Peterhof 2008}) 11. d5 {[%emt 0:02:30]} Na5 {[%emt 0:03:30]} 12. Qa3 {[%emt 0:01:30]} b6 {[%emt 0:06:30]} 13. Be2 {[%emt 0:02:30]} Bg4 {[%emt 0:01:30]} 14. h3 {[%emt 0:06:30]} Bxf3 {[%emt 0:00:30]} 15. Bxf3 {[%emt 0:00:30]} Nc4 {[%emt 0:00:30]} 16. Qb3 {[%emt 0:00:30]} Nxe3 {[%emt 0:03:30]} 17. fxe3 {[%emt 0:00:00]} Nd7 {[%emt 0:02:30]} 18. O-O {[%emt 0:02:00]} Rc8 {[%emt 0:08:30]} 19. Nb5 {[%emt 0:03:30]} Nc5 {[%emt 0:03:30]} 20. Qb4 {[%emt 0:05:30]} Qd7 {[%emt 0:13:30]} 21. Nd4 {[%emt 0:05:30]} Qd6 {[%emt 0:04:30]} 22. Nc6 {[%emt 0:02:30]} Rc7 {[%emt 0:01:30]} 23. b3 {[%emt 0:01:30]} Bh6 $11 {[%emt 0:06:30]} 24. Rfe1 {[%emt 0:04:30]} e5 {[%emt 0:09:30]} 25. Qh4 {[%emt 0:04:30]} Bg7 {[%emt 0:01:30]} 26. e4 {[%emt 0:01:30]} a5 {[%emt 0:07:02]} 27. Qg3 {[%emt 0:01:30]} Ne6 {[%emt 0:02:26]} 28. Qf2 {[%emt 0:05:30]} Nd4 {[%emt 0:01:21]} 29. Rxd4 {[%emt 0:01:30]} exd4 {[%emt 0:01:36]} 30. e5 {[%emt 0:00:30]} Qc5 {[%emt 0:01:24]} 31. Nxd4 {[%emt 0:00:30]} Rd7 {[%emt 0:04:26]} 32. Nc6 {[%emt 0:01:30]} Qc3 {[%emt 0:04:54]} 33. Re3 {[%emt 0:06:30]} Re8 {[%emt 0:00:34]} 34. Kh2 {[%emt 0:00:30]} Qc1 {[%emt 0:00:30]} 35. g3 {[%emt 0:00:30]} Qc5 {[%emt 0:00:30]} 36. Qe2 {[%emt 0:00:30]} Rxd5 {[%emt 0:00:12]} 37. Bxd5 {[%emt 0:00:00]} Qxd5 {[%emt 0:00:04]} 38. Qc4 {[%emt 0:00:00]} Qxc4 {[%emt 0:01:21]} 39. bxc4 {[%emt 0:00:30]} Bf8 {[%emt 0:00:11]} 40. Rb3 {[%emt 0:02:30]} Bc5 {[%emt 0:00:16]} 41. Rd3 {[%emt 0:00:30]} Re6 {[%emt 0:01:17]} 42. Rd8+ {[%emt 0:00:30]} Kg7 {[%emt 0:00:02]} 43. Rc8 {[%emt 0:00:30]} Ba3 {[%emt 0:03:15]} 44. g4 {[%emt 0:01:30]} Bb2 {[%emt 0:00:21]} 45. Kg3 {[%emt 0:01:30]} Bxe5+ {[%emt 0:00:10]} 46. Kf3 {[%emt 0:00:30]} Bf6 {[%emt 0:00:29]} 47. c5 {[%emt 0:01:30]} bxc5 {[%emt 0:00:31]} 48. Nxa5 {[%emt 0:00:30]} Bd4 {[%emt 0:00:44]} 49. Nc4 {[%emt 0:00:30]} Ra6 {[%emt 0:00:30]} 50. Ke4 {[%emt 0:00:30]} Rxa2 {[%emt 0:00:41]} 51. Nd6 {[%emt 0:00:30]} Re2+ {[%emt 0:01:34]} 52. Kd5 {[%emt 0:00:30]} Re5+ {[%emt 0:00:27]} 53. Kc4 {[%emt 0:00:30]} Re7 {[%emt 0:00:40]} 54. Re8 {[%emt 0:01:30]} Rxe8 {[%emt 0:00:12]} 55. Nxe8+ {[%emt 0:00:00]} Kf8 {[%emt 0:00:28]} 56. Nd6 {[%emt 0:00:00]} Ke7 {[%emt 0:00:08]} 57. Ne4 {[%emt 0:00:30]} h5 {[%emt 0:01:07]} 58. gxh5 {[%emt 0:00:30]} gxh5 {[%emt 0:00:01]} 59. h4 {[%emt 0:01:30]} Bf6 {[%emt 0:00:41]} 60. Kxc5 {[%emt 0:02:30]} Bxh4 {[%emt 0:00:02]} 61. Kd5 {[%emt 0:00:30]} f5 {[%emt 0:00:30]} 62. Nd6 {[%emt 0:00:30]} Kf6 {[%emt 0:00:08]} 63. Kd4 {[%emt 0:00:30]} Bg3 {[%emt 0:01:17]} 64. Nc4 {[%emt 0:00:30]} Kg5 {[%emt 0:00:52]} 65. Ke3 {[%emt 0:00:30]} Kg4 {[%emt 0:00:23]} 66. Nd2 {[%emt 0:01:30]} Bf4+ {[%emt 0:00:32]} 0-1

[Event "Manisa Yunusemre IM Norm 2019"]
[Site "Manisa"]
[Date "2019.05.01"]
[Round "4.1"]
[White "Abdullayev, Azer"]
[Black "Simantsev, Mikhail"]
[Result "0-1"]
[ECO "E10"]
[WhiteElo "2074"]
[BlackElo "2395"]
[Annotator "NA"]
[PlyCount "88"]
[EventDate "2019.04.30"]
[EventCountry "TUR"]
[SourceTitle "playchess.com"]
[Source "ChessBase"]
[SourceQuality "1"]
[TimeControl "5400+30"]

1. d4 {[%emt 0:00:30]} Nf6 {[%emt 0:09:30]} 2. c4 {[%emt 0:00:00]} e6 {[%emt 0:00:00]} 3. Nf3 {[%emt 0:00:00]} c5 {[%emt 0:00:00]} 4. d5 {[%emt 0:00:30]} exd5 {[%emt 0:00:00]} 5. cxd5 {[%emt 0:00:30]} Bd6 {[%emt 0:00:00]} 6. g3 {[%emt 0:02:30]} Bc7 {[%emt 0:01:30]} 7. Bg2 {[%emt 0:00:30]} (7. d6 $5 {[%cal Rd6c7]} Ba5+ 8. Nbd2 $11) 7... d6 {[%emt 0:00:00]} 8. O-O {[%emt 0:00:30]} O-O {[%emt 0:00:00]} 9. Nfd2 {[%emt 0:04:30]} Nbd7 {[%emt 0:04:30]} 10. a4 {[%emt 0:01:30]} a6 {[%emt 0:02:30]} 11. Nc4 {[%emt 0:06:30]} Nb6 {[%emt 0:08:30]} 12. Nca3 {[%emt 0:12:30]} Bd7 {[%emt 0:04:30]} 13. a5 {[%emt 0:17:30]} Nc8 {[%emt 0:03:30]} 14. Nc4 {[%emt 0:00:30]} Bb5 {[%emt 0:01:30]} 15. Nbd2 {[%emt 0:01:30]} Re8 {[%emt 0:02:30]} 16. b3 {[%emt 0:09:30]} b6 {[%emt 0:25:30]} 17. axb6 {[%emt 0:05:30]} Nxb6 {[%emt 0:12:30]} 18. e4 {[%emt 0:00:30]} a5 {[%emt 0:00:30]} 19. Re1 {[%emt 0:00:30]} Rb8 {[%emt 0:02:57]} 20. h3 {[%emt 0:07:30]} Nfd7 {[%emt 0:13:48]} 21. f4 {[%emt 0:06:30]} a4 {[%emt 0:03:29]} 22. Nxb6 {[%emt 0:01:30]} Nxb6 {[%emt 0:01:31]} 23. bxa4 {[%emt 0:00:30]} Bd3 {[%emt 0:00:01]} 24. Bf1 {[%emt 0:14:32]} Qf6 {[%emt 0:01:42]} 25. e5 {[%emt 0:01:29]} Qg6 {[%emt 0:00:20]} 26. Qf3 {[%emt 0:00:44]} Bxf1 {[%emt 0:00:42]} 27. Rxf1 {[%emt 0:00:34]} dxe5 {[%emt 0:00:13]} 28. a5 {[%emt 0:01:20] [#]} e4 $1 {[%emt 0:00:35]} 29. Nxe4 {[%emt 0:00:54]} Nxd5 {[%emt 0:01:38]} 30. Ng5 {[%emt 0:01:44]} Nb4 {[%emt 0:00:31]} 31. h4 {[%emt 0:02:11]} (31. Qg2 $17) 31... Nc2 {[%emt 0:00:19]} (31... h6 $19 {has better winning chances.} 32. Nh3 Nc2) 32. Ra2 {[%emt 0:00:28]} Nd4 {[%emt 0:00:08]} 33. Qg2 {[%emt 0:00:32]} h6 {[%emt 0:00:56]} 34. Nf3 {[%emt 0:00:24]} Ra8 {[%emt 0:00:37]} 35. Nxd4 {[%emt 0:00:27]} cxd4 {[%emt 0:00:02]} 36. Bd2 {[%emt 0:00:18]} d3 {[%emt 0:00:26]} 37. Rf2 {[%emt 0:00:31]} Bb6 {[%emt 0:00:31]} 38. axb6 {[%emt 0:00:42]} Rxa2 {[%emt 0:00:02]} 39. b7 {[%emt 0:00:23] [#]} Qb6 $19 {[%emt 0:00:17]} 40. Kh2 {[%emt 0:00:43]} Rb8 {[%emt 0:01:20]} 41. f5 {[%emt 0:00:33]} Qxb7 {[%emt 0:00:07]} 42. Qf1 {[%emt 0:00:29]} Qe4 {[%emt 0:00:25]} 43. f6 {[%emt 0:00:19]} Rbb2 {[%emt 0:00:35]} 44. Qc1 {[%emt 0:00:24]} Rxd2 {[%emt 0:00:24]} 0-1

[Event "Manisa Yunusemre IM Norm 2019"]
[Site "Manisa"]
[Date "2019.05.01"]
[Round "4.2"]
[White "Metin, Oguz"]
[Black "Morozov, Nichita"]
[Result "0-1"]
[ECO "A60"]
[WhiteElo "2058"]
[BlackElo "2398"]
[Annotator "ChessBase"]
[PlyCount "92"]
[EventDate "2019.04.30"]
[EventCountry "TUR"]
[SourceTitle "playchess.com"]
[Source "ChessBase"]
[SourceQuality "1"]
[TimeControl "5400+30"]

1. d4 {[%emt 0:00:30]} Nf6 {[%emt 0:05:30]} 2. c4 {[%emt 0:00:00]} c5 {[%emt 0:01:30]} 3. d5 {[%emt 0:00:00]} e6 {[%emt 0:00:30]} 4. Nc3 {[%emt 0:00:30]} exd5 {[%emt 0:00:30]} 5. cxd5 {[%emt 0:00:30]} Bd6 {[%emt 0:00:30]} 6. Nf3 {[%emt 0:00:30]} Bc7 {[%emt 0:01:30]} 7. g3 {[%emt 0:00:30]} d6 {[%emt 0:05:30]} 8. Bg2 {[%emt 0:00:30]} O-O {[%emt 0:00:30]} 9. O-O {[%emt 0:00:30]} a6 {[%emt 0:00:30]} 10. a4 {[%emt 0:00:30]} Re8 {[%emt 0:01:30]} 11. Qc2 {[%emt 0:09:30]} Nbd7 {[%emt 0:00:30]} 12. Nd2 {[%emt 0:05:30]} Rb8 {[%emt 0:04:30]} 13. Nc4 {[%emt 0:14:30]} b5 {[%emt 0:04:30]} 14. axb5 {[%emt 0:01:30]} axb5 {[%emt 0:00:30]} 15. Ne3 {[%emt 0:00:30]} Ne5 {[%emt 0:13:30]} 16. h3 {[%emt 0:07:30]} Bd7 {[%emt 0:02:30]} 17. b4 {[%emt 0:10:30]} Bb6 {[%emt 0:02:30]} 18. Kh2 {[%emt 0:02:30]} cxb4 {[%emt 0:06:30]} 19. Na2 {[%emt 0:04:30]} Bc5 {[%emt 0:02:30]} 20. Rb1 {[%emt 0:01:30]} Nc4 {[%emt 0:05:30]} 21. Nxb4 {[%emt 0:03:30]} Bxe3 {[%emt 0:01:30]} 22. fxe3 {[%emt 0:00:30]} Qe7 {[%emt 0:00:30]} 23. Rf3 {[%emt 0:05:30]} Rbc8 {[%emt 0:02:30]} 24. Qd1 {[%emt 0:09:30]} Ne4 {[%emt 0:08:30]} 25. Ra1 {[%emt 0:02:27]} Qg5 {[%emt 0:02:30]} 26. Qe1 {[%emt 0:02:41]} Ra8 {[%emt 0:04:30]} 27. Rxa8 {[%emt 0:03:02]} Rxa8 {[%emt 0:00:30]} 28. Rf4 {[%emt 0:00:26]} f5 {[%emt 0:00:30]} 29. Bxe4 {[%emt 0:01:34]} fxe4 {[%emt 0:00:00]} 30. Qc3 {[%emt 0:02:31]} Qh5 {[%emt 0:03:39]} 31. g4 {[%emt 0:00:28]} Qe5 {[%emt 0:00:37]} 32. Qxe5 {[%emt 0:00:48]} dxe5 {[%emt 0:00:02]} 33. Rxe4 {[%emt 0:00:15]} Be8 {[%emt 0:00:12]} 34. Bb2 {[%emt 0:08:25]} Nxb2 {[%emt 0:01:51]} 35. Rxe5 {[%emt 0:00:05]} Bg6 {[%emt 0:00:11]} 36. d6 {[%emt 0:00:53]} Nc4 {[%emt 0:00:14]} 37. Rxb5 {[%emt 0:00:26]} Nxd6 {[%emt 0:00:06]} 38. Rc5 {[%emt 0:00:03]} Rf8 {[%emt 0:00:49]} 39. Kg2 {[%emt 0:00:39]} Ne4 {[%emt 0:04:05]} 40. Rc2 {[%emt 0:00:24]} Nf2 {[%emt 0:00:19]} 41. Rc7 {[%emt 0:00:32]} Be4+ {[%emt 0:00:32]} 42. Kg3 {[%emt 0:00:08]} Ba8 {[%emt 0:02:13]} 43. Nc2 {[%emt 0:00:34]} Ne4+ {[%emt 0:00:24]} 44. Kh4 {[%emt 0:00:04]} h6 {[%emt 0:01:03]} 45. Nd4 {[%emt 0:00:17]} Bd5 {[%emt 0:00:39]} 46. Nf5 {[%emt 0:00:42]} Bf7 {[%emt 0:00:07]} 0-1

[Event "Manisa Yunusemre IM Norm 2019"]
[Site "Manisa"]
[Date "2019.05.01"]
[Round "4.3"]
[White "Nalbant, Tuna Onat"]
[Black "Kukov, Velislav"]
[Result "1/2-1/2"]
[ECO "D14"]
[WhiteElo "2354"]
[BlackElo "2351"]
[Annotator "ChessBase"]
[PlyCount "60"]
[EventDate "2019.04.30"]
[EventCountry "TUR"]
[SourceTitle "playchess.com"]
[Source "ChessBase"]
[SourceQuality "1"]
[TimeControl "5400+30"]

1. d4 {[%emt 0:00:30]} d5 {[%emt 0:00:30]} 2. c4 {[%emt 0:00:00]} c6 {[%emt 0:00:00]} 3. cxd5 {[%emt 0:00:00]} cxd5 {[%emt 0:00:00]} 4. Nf3 {[%emt 0:00:00]} Nf6 {[%emt 0:00:30]} 5. Nc3 {[%emt 0:00:00]} Nc6 {[%emt 0:00:00]} 6. Bf4 {[%emt 0:00:30]} Bf5 {[%emt 0:00:00]} 7. e3 {[%emt 0:00:00]} e6 {[%emt 0:00:00]} 8. Bd3 {[%emt 0:00:00]} Bxd3 {[%emt 0:00:00]} 9. Qxd3 {[%emt 0:00:30]} Bd6 {[%emt 0:00:00]} 10. Bxd6 {[%emt 0:00:00]} Qxd6 {[%emt 0:00:00]} 11. O-O {[%emt 0:00:00]} O-O {[%emt 0:00:30]} 12. Rfc1 {[%emt 0:00:00]} Rfc8 {[%emt 0:00:00]} 13. Ne2 {[%emt 0:00:00]} Ne4 {[%emt 0:01:00]} 14. a3 {[%emt 0:01:30]} a6 {[%emt 0:00:30]} 15. Nd2 {[%emt 0:00:00]} Nxd2 {[%emt 0:00:30]} 16. Qxd2 {[%emt 0:00:00]} Ne7 {[%emt 0:00:00]} 17. Rxc8+ {[%emt 0:00:00]} Rxc8 {[%emt 0:00:00]} 18. Rc1 {[%emt 0:00:00]} Rxc1+ {[%emt 0:00:00]} 19. Qxc1 {[%emt 0:00:30]} Qc6 {[%emt 0:00:00]} 20. Qxc6 {[%emt 0:00:00]} Nxc6 {[%emt 0:00:30]} 21. Nc3 {[%emt 0:01:00]} b5 {[%emt 0:00:00]} 22. b4 {[%emt 0:00:30]} Kf8 {[%emt 0:00:00]} 23. Kf1 {[%emt 0:00:00]} Ke7 {[%emt 0:00:30]} 24. Ke2 {[%emt 0:00:00]} Kd6 {[%emt 0:00:00]} 25. Kd3 {[%emt 0:00:30]} f5 {[%emt 0:00:00]} 26. f4 {[%emt 0:00:00]} g6 {[%emt 0:00:30]} 27. g3 {[%emt 0:00:00]} h5 {[%emt 0:00:00]} 28. h4 {[%emt 0:00:00]} Ne7 {[%emt 0:00:00]} 29. Nb1 {[%emt 0:00:00]} Nc6 {[%emt 0:00:00]} 30. Nc3 {[%emt 0:00:30]} Ne7 {[%emt 0:00:00]} 1/2-1/2

[Event "Manisa Yunusemre IM Norm 2019"]
[Site "Manisa"]
[Date "2019.05.01"]
[Round "4.4"]
[White "Ozen, Bahadir"]
[Black "Mammadova, Narmin"]
[Result "1/2-1/2"]
[ECO "D12"]
[WhiteElo "2328"]
[BlackElo "2292"]
[Annotator "ChessBase"]
[PlyCount "34"]
[EventDate "2019.04.30"]
[EventCountry "TUR"]
[SourceTitle "playchess.com"]
[Source "ChessBase"]
[SourceQuality "1"]
[TimeControl "5400+30"]

1. Nf3 {[%emt 0:00:30]} d5 {[%emt 0:00:30]} 2. d4 {[%emt 0:02:30]} Nf6 {[%emt 0:00:30]} 3. e3 {[%emt 0:01:30]} Bf5 {[%emt 0:03:30]} 4. c4 {[%emt 0:00:30]} e6 {[%emt 0:03:30]} 5. Nc3 {[%emt 0:00:30]} c6 {[%emt 0:01:30]} 6. Bd3 {[%emt 0:02:30]} Bxd3 {[%emt 0:00:30]} 7. Qxd3 {[%emt 0:00:00]} Nbd7 {[%emt 0:00:00]} 8. O-O {[%emt 0:01:00]} Be7 {[%emt 0:01:00]} 9. b3 {[%emt 0:04:30]} O-O {[%emt 0:04:30]} 10. Bb2 {[%emt 0:03:30]} Qa5 {[%emt 0:04:30]} 11. Rfd1 {[%emt 0:03:30]} Rfd8 {[%emt 0:06:30]} 12. h3 {[%emt 0:00:00]} Ba3 {[%emt 0:00:00]} 13. Bxa3 {[%emt 0:00:00]} Qxa3 {[%emt 0:00:00]} 14. Nb1 {[%emt 0:00:30]} Qa5 {[%emt 0:00:30]} 15. Nc3 {[%emt 0:00:00]} Qa3 {[%emt 0:00:00]} 16. Nb1 {[%emt 0:00:00]} Qa5 {[%emt 0:00:00]} 17. Nc3 {[%emt 0:00:00]} Qa3 {[%emt 0:00:00]} 1/2-1/2

[Event "Manisa Yunusemre IM Norm 2019"]
[Site "Manisa"]
[Date "2019.05.01"]
[Round "4.5"]
[White "Akin, Kadir"]
[Black "Guseynov, Alihan"]
[Result "0-1"]
[ECO "B07"]
[WhiteElo "2033"]
[BlackElo "2340"]
[Annotator "NA"]
[PlyCount "66"]
[EventDate "2019.04.30"]
[EventCountry "TUR"]
[SourceTitle "playchess.com"]
[Source "ChessBase"]
[SourceQuality "1"]
[TimeControl "5400+30"]

1. e4 {[%emt 0:00:30]} g6 {[%emt 0:00:30]} 2. d4 {[%emt 0:00:30]} Bg7 {[%emt 0:00:30]} 3. Nc3 {[%emt 0:00:00]} d6 {[%emt 0:00:30]} 4. Be3 {[%emt 0:00:00]} c6 {[%emt 0:00:30]} 5. Nf3 {[%emt 0:00:30]} Nd7 {[%emt 0:02:30]} 6. Qd2 {[%emt 0:00:30]} Ngf6 {[%emt 0:03:30]} 7. h3 {[%emt 0:00:30]} O-O {[%emt 0:00:30]} 8. Bd3 {[%emt 0:05:30]} Qc7 {[%emt 0:04:30]} 9. O-O {[%emt 0:00:00]} b5 {[%emt 0:01:30]} 10. a4 {[%emt 0:00:00] B07: Pirc Defence: Miscellaneous Systems} (10. Ne2 e5 11. dxe5 Nxe5 12. Nxe5 dxe5 13. a4 Be6 14. axb5 cxb5 15. Qa5 Rfc8 16. Qxc7 Rxc7 17. Nc3 Bc4 {½-½ (92) Saric,I (2666)-Van Wely,L (2667) Wijk aan Zee 2015}) 10... b4 {[%emt 0:02:30]} 11. Ne2 {[%emt 0:00:30]} c5 {[%emt 0:02:30]} 12. c3 {[%emt 0:07:30]} Bb7 {[%emt 0:06:30]} 13. Ng3 {[%emt 0:10:30]} c4 {[%emt 0:08:30]} 14. Bb1 {[%emt 0:00:30]} bxc3 {[%emt 0:07:30]} 15. Qxc3 {[%emt 0:10:30] [#]} Rfc8 $146 {[%emt 0:06:30]} ({Predecessor:} 15... Rac8 16. Rc1 Qb8 {0-1 (55) Jansa,V (2460)-Hickl,J (2515) Bad Woerishofen 1992}) 16. Nd2 {[%emt 0:01:30]} Rab8 {[%emt 0:04:30]} 17. Rc1 {[%emt 0:01:30]} d5 {[%emt 0:12:30]} 18. Ba2 {[%emt 0:14:30]} e6 {[%emt 0:13:30]} 19. b3 {[%emt 0:02:30]} Nxe4 {[%emt 0:02:42]} 20. Ngxe4 {[%emt 0:01:30]} dxe4 {[%emt 0:00:04]} 21. bxc4 {[%emt 0:04:30]} Nc5 {[%emt 0:02:26]} 22. Qa3 {[%emt 0:19:22]} Nd3 {[%emt 0:01:15]} 23. Rd1 {[%emt 0:00:56]} Rd8 {[%emt 0:05:00]} 24. Nb3 {[%emt 0:03:58]} f5 {[%emt 0:00:29]} 25. Bg5 {[%emt 0:03:56]} Rxd4 {[%emt 0:02:42]} 26. Nxd4 {[%emt 0:00:15]} Bxd4 {[%emt 0:00:03]} 27. Rab1 {[%emt 0:10:52]} Bxf2+ {[%emt 0:01:50]} 28. Kf1 {[%emt 0:00:24]} Bc5 {[%emt 0:00:24]} 29. Rxd3 {[%emt 0:00:33]} exd3 {[%emt 0:01:59]} 30. Qxd3 {[%emt 0:00:10]} Qh2 $19 {[%emt 0:00:14]} 31. Rxb7 {[%emt 0:01:02]} Qg1+ {[%emt 0:00:22]} 32. Ke2 {[%emt 0:00:01]} Qxg2+ {[%emt 0:00:11]} 33. Kd1 {[%emt 0:00:04]} Qxb7 {[%emt 0:00:12]} 0-1